Cogmind - Beta 16.1 @@@ ROGUE MODE // 2026.02.12 @ 16:14:00 Player: UniqueName Result: Destroyed by S-10 Pest with Light Assault Rifle Performance ------------- Evolutions (1) 500 Regions Visited (3) 600 Robots Destroyed (23) 115 Value Destroyed (619) 619 Prototype IDs (1) 20 Alien Tech Used (0) 0 Bonus (0) 0 TOTAL SCORE: 1854 Bonus ------- None Cogmind --------- Core Integrity 0/400 Matter 231/300 Energy 265/265 System Corruption 0% Temperature Cool (0) Movement Treading (165) Location -9/Materials Parts ------- > --- POWER (1) -------- Improved Ion Engine > --- PROPULSION (3) --- Light Treads Armored Treads > --- UTILITY (3) ------ Large Storage Unit Visual Processing Unit > --- WEAPON (2) ------- Heavy Assault Rifle Heavy Assault Rifle > --- INVENTORY (15) --- Improved Ion Engine Heat Sink Beam Rifle Advanced Beam Rifle Grenade Launcher Katana Peak State ------------ > --- POWER ------------ Ion Engine > --- PROPULSION ------- Armored Treads Armored Treads Armored Treads > --- UTILITY ---------- Large Storage Unit Visual Processing Unit Shield Generator > --- WEAPON ----------- Advanced Beam Rifle Assault Rifle > --- INVENTORY -------- Improved Ion Engine Armored Treads Medium Laser Grenade Launcher Katana [Rating: 21] Favorites ----------- Power Light Ion Engine Engine Light Ion Engine Propulsion Armored Treads Treads Armored Treads Leg Aluminum Leg Utility Visual Processing Unit Device Shield Generator Storage Large Storage Unit Processor Visual Processing Unit Protection Light Armor Plating Weapon Assault Rifle Energy Gun Medium Laser Ballistic Gun Assault Rifle Slashing Weapon Katana Build | -11 -10 -10 -9 ------- Run | Yrd Mat Min Mat Slots Evolved 2 | . . . 2 Power . | . . . . Propulsion 1 | . . . 1 Utility 1 | . . . 1 Weapon . | . . . . Parts Attached 22 | 6 . . 16 Power 3 | 1 . . 2 Engine 3 | 1 . . 2 Core . | . . . . Reactor . | . . . . Propulsion 8 | 2 . . 6 Treads 6 | . . . 6 Leg 2 | 2 . . . Wheel . | . . . . Hover . | . . . . Flight . | . . . . Utility 5 | 1 . . 4 Device 1 | . . . 1 Storage 2 | 1 . . 1 Processor 1 | . . . 1 Hackware . | . . . . Protection 1 | . . . 1 Artifact . | . . . . Weapon 6 | 2 . . 4 Energy Gun 2 | 1 . . 1 Energy Cannon . | . . . . Ballistic Gun 3 | 1 . . 2 Ballistic Cannon . | . . . . Launcher . | . . . . Special Weapon . | . . . . Impact Weapon . | . . . . Slashing Weapon 1 | . . . 1 Piercing Weapon . | . . . . Special Melee Weapon . | . . . . Unidentified Prototypes 1 | . . . 1 Parts Lost 9 | 1 . . 8 Power 1 | . . . 1 Propulsion 4 | . . . 4 Utility 3 | 1 . . 2 Weapon 1 | . . . 1 Highest Loss Streak 5 | 1 . . 5 To Critical Strikes . | . . . . Average Backups 3 | . 2 3 5 Power . | . 1 1 . Propulsion . | . . . . Utility . | . . . . Weapon 2 | . 1 2 3 Tool/Special . | . . . . Unused Backups 8 | . . . 8 Power 3 | . . . 3 Propulsion 1 | . . . 1 Utility 1 | . . . 1 Weapon 3 | . . . 3 Tool/Special . | . . . . Average Slot Usage (%) 84 | . 71 71 87 Engine 11 | . 14 14 10 Treads 20 | . . . 24 Leg 7 | . 28 28 2 Device 4 | . . . 5 Storage 7 | . . . 9 Processor 8 | . . . 10 Protection 2 | . . . 2 Energy Gun 7 | . 14 14 5 Ballistic Gun 12 | . 14 14 11 Slashing Weapon 2 | . . . 2 Peak Build Rating 21 | 6 5 5 21 Average Rating 12 | 4 5 5 16 On Entrance 3 | . 5 5 5 Avg Prop Armor Cover (%) . | . . . . Naked Turns . | . . . . Heaviest Build 36 | 8 7 7 36 Greatest Support 60 | 20 20 20 60 Greatest Overweight (x) 1 | . . . 1 Average Overweight (x) . | . . . . Largest Inventory Capacity 15 | 5 5 5 15 Average Capacity 10 | 5 5 5 13 Most Carried 7 | 2 3 3 7 Average Carried 4 | . 2 3 5 Final Capacity 15 | 5 5 5 15 Final Carried 6 | 2 3 3 6 Class Distribution -------------------- 76% | Mutant 23% | Scavenger-Mutant Dominant Class ---------------- Mutant | -10/Materials Mutant | -10/Mines Mutant | -9/Materials Resources | -11 -10 -10 -9 ----------- Run | Yrd Mat Min Mat Matter Collected 600 | 282 . . 318 Remotely . | . . . . Salvage Created 733 | 98 . . 635 Parts 45 | 2 . . 43 Haulers Intercepted . | . . . . Recyclers Shooed 1 | . . . 1 Parts Field Recycled . | . . . . Retrieved Matter . | . . . . Parts Self-Destructed . | . . . . Prevented . | . . . . Parts Restored . | . . . . Kills | -11 -10 -10 -9 ------- Run | Yrd Mat Min Mat Combat Hostiles Destroyed 20 | 1 . . 19 Melee 8 | . . . 8 Guns 12 | 1 . . 11 Classes Destroyed 7 | 3 . . 4 Worker 1 | 1 . . . Tunneler 1 | 1 . . . Watcher 1 | . . . 1 Swarmer 6 | . . . 6 Grunt 10 | 1 . . 9 Duelist 1 | . . . 1 Sentry 3 | . . . 3 Best Kill Streak 8 | 2 . . 8 Combat Bots Only 8 | 1 . . 8 Max Kills in Single Turn 2 | 1 . . 2 Gunslinging 1 | . . . 1 Exploded . | . . . . Melee 1 | . . . 1 Uniques/NPCs Destroyed . | . . . . Combat | -11 -10 -10 -9 -------- Run | Yrd Mat Min Mat Hostile Shots Fired 270 | 9 3 . 258 Missed 54 | 1 2 . 51 Hits 216 | 8 1 . 207 Melee 4 | . . . 4 Projectile 212 | 8 1 . 203 Critical Strikes 3 | . . . 3 Damage Taken 2195 | 92 10 . 2093 Core 418 | 12 . . 406 Absorbed by Shields 212 | . . . 212 Core Remaining (%) 95 | 95 . 95 . Volleys Fired 58 | 10 . . 48 Largest 2 | 2 . . 2 Hottest 81 | 70 . . 81 Shots Fired 101 | 20 . . 81 Gun 101 | 20 . . 81 Cannon . | . . . . Launcher . | . . . . Special . | . . . . Kinetic 86 | 10 . . 76 Thermal 15 | 10 . . 5 Explosive . | . . . . Electromagnetic . | . . . . Robot Hit Streak 8 | 3 . . 8 Robot Miss Streak 6 | 3 . . 6 Penetration Max . | . . . . Secondary Targets 4 | . . . 4 Max Gunslinging Chain 1 | . . . 1 Shots Hit Robots 72 | 10 . . 62 Core Hits 32 | 4 . . 28 Critical Kills . | . . . . Critical Parts Destroyed . | . . . . Critical Strikes 1 | 1 . . . Burn 1 | 1 . . . Melee Attacks 25 | . . . 25 Impact . | . . . . Slashing 25 | . . . 25 Piercing . | . . . . Sneak Attacks . | . . . . Combat Hostiles . | . . . . Follow-up Attacks . | . . . . Damage Inflicted 1369 | 153 . . 1216 Guns 858 | 153 . . 705 Cannons . | . . . . Explosions . | . . . . Melee 508 | . . . 508 Ramming 3 | . . . 3 Kinetic 710 | 65 . . 645 Thermal 148 | 88 . . 60 Explosive . | . . . . Electromagnetic . | . . . . Impact . | . . . . Slashing 508 | . . . 508 Piercing . | . . . . Highest Corruption . | . . . . Average Corruption . | . . . . Corruption Purged . | . . . . Corruption Blocked . | . . . . Overload Shots . | . . . . Overflow Damage 36 | . . . 36 Projectiles . | . . . . Explosions . | . . . . Melee 36 | . . . 36 Knockbacks . | . . . . Impact . | . . . . Kinetic . | . . . . Secondary . | . . . . Self-Inflicted Damage . | . . . . Shots . | . . . . Rammed 1 | . . . 1 Targets Rammed 1 | . . . 1 Kicked . | . . . . Crushed . | . . . . Highest Temperature 111 | 111 . . 46 Average Temperature 31 | 44 . . 20 Received Heat Transfer 645 | 48 . . 597 Siege Activations . | . . . . Martial Activations . | . . . . Shielding Activations . | . . . . Robots Disrupted . | . . . . Combat Hostiles . | . . . . Robots Corrupted . | . . . . Combat Hostiles . | . . . . Parts Fried . | . . . . Impact Corruptions . | . . . . Robots Melted . | . . . . Combat Hostiles . | . . . . Parts Melted 1 | 1 . . . Heat Transferred 444 | 333 . . 111 Parts Sabotaged . | . . . . Parts Stolen . | . . . . Parts Stripped . | . . . . Power Chain Reactions . | . . . . Alert | -11 -10 -10 -9 ------- Run | Yrd Mat Min Mat Maximum Alert Level 1 | . . . 1 Low Security (%) 99 | 100 100 100 99 Level 1 . | . . . . Level 2 . | . . . . Level 3 . | . . . . Level 4 . | . . . . Level 5 . | . . . . High Security . | . . . . Max Security . | . . . . Peak Influence 215 | 20 14 . 215 Initial 6 | . 6 . . Average 44 | 2 2 . 64 Influence Increases 567 | 30 21 . 516 Destroy 0b10 Robot/C 400 | 20 . . 380 Destroy 0b10 Robot/NC 15 | 10 . . 5 Destroy Leader 92 | . . . 92 Successful Hack 30 | . 21 . 9 Lose Combat Pursuer 30 | . . . 30 Influence Decreases 352 | 20 31 . 301 Entered New Map 4 | . 4 . . Time Decay 227 | 20 23 . 184 Lost Part 80 | . . . 80 Purge Threat 41 | . 4 . 37 Squads Dispatched 4 | . 1 . 3 Investigation 1 | . . . 1 Extermination . | . . . . Reinforcement 3 | . 1 . 2 Assault . | . . . . Garrison . | . . . . Intercept . | . . . . Searches Triggered . | . . . . Construction Impeded . | . . . . Haulers Reinforced . | . . . . Active Scanning Responses . | . . . . Cargo Convoy Interrupts . | . . . . Stealth | -11 -10 -10 -9 --------- Run | Yrd Mat Min Mat Distress Signals 2 | . . . 2 Communications Jammed . | . . . . Distress Signals . | . . . . Times Spotted 37 | 1 4 . 32 Peak Tracking Total 9 | 1 5 . 9 Tactical Retreats 2 | . . . 2 Traps | -11 -10 -10 -9 ------- Run | Yrd Mat Min Mat Traps Triggered . | . . . . Indirectly . | . . . . Trap Hack Attempts . | . . . . Triggered . | . . . . Disarmed . | . . . . Reprogrammed . | . . . . Reused . | . . . . Traps Extracted . | . . . . Installed . | . . . . Triggered . | . . . . Machines | -11 -10 -10 -9 ---------- Run | Yrd Mat Min Mat Machines Disabled . | . . . . Max in Single Turn . | . . . . Machines Repaired . | . . . . Machines Dismantled . | . . . . Machines Sabotaged . | . . . . Overloaded Fab Kills . | . . . . Hacking | -11 -10 -10 -9 --------- Run | Yrd Mat Min Mat Machines Accessed 6 | . 3 . 3 Terminals 5 | . 3 . 2 Fabricators . | . . . . Repair Stations . | . . . . Recycling Units . | . . . . Scanalyzers 1 | . . . 1 Garrison Access . | . . . . Total Hacks 20 | . 10 . 10 Successful 6 | . 3 . 3 Failed 13 | . 7 . 6 Catastrophic 6 | . 3 . 3 Database Lockouts 1 | . . . 1 Manual . | . . . . Terminals 17 | . 10 . 7 Fabricators . | . . . . Repair Stations . | . . . . Recycling Units . | . . . . Scanalyzers 3 | . . . 3 Garrison Access . | . . . . Terminal Hacks 5 | . 3 . 2 Branch Access Points 1 | . . . 1 Unreport Threat 2 | . 1 . 1 Recall Investigation 1 | . 1 . . Zone Layout 1 | . 1 . . Fabricator Hacks . | . . . . Repair Station Hacks . | . . . . Recycling Unit Hacks . | . . . . Scanalyzer 1 | . . . 1 Retrieve Study 1 | . . . 1 Garrison Access Hacks . | . . . . Unauthorized Hacks . | . . . . Terminals . | . . . . Fabricators . | . . . . Repair Stations . | . . . . Recycling Units . | . . . . Scanalyzers . | . . . . Garrison Access . | . . . . Data Cores Recovered . | . . . . Used . | . . . . Hacking Detections 6 | . 3 . 3 Full Trace Events 2 | . 1 . 1 Feedback Events . | . . . . Feedback Blocked . | . . . . Robot Schematics Acquired . | . . . . Robots Built . | . . . . Authchips . | . . . . Time . | . . . . Total Robot Build Rating . | . . . . Part Schematics Acquired . | . . . . Parts Built . | . . . . Authchips . | . . . . Time . | . . . . Total Part Build Rating . | . . . . Part Studies Acquired 1 | . . . 1 Parts Repaired . | . . . . Time . | . . . . Parts Recycled . | . . . . Recycled Matter . | . . . . Retrieved Matter . | . . . . Retrieved Components . | . . . . Parts Scanalyzed . | . . . . Part Schematics Acquired . | . . . . Parts Damaged . | . . . . Bothacking | -11 -10 -10 -9 ------------ Run | Yrd Mat Min Mat Used RIF Installer . | . . . . Robots Hacked . | . . . . Non-combat . | . . . . Combat . | . . . . Robot Hacks Applied . | . . . . Relay Couplers Released . | . . . . Fabnet Peak Effective % . | . . . . Robots Rewired . | . . . . Allies Hacked . | . . . . Hacks Repelled . | . . . . Allies | -11 -10 -10 -9 -------- Run | Yrd Mat Min Mat Total Allies . | . . . . Largest Group . | . . . . Highest-Rated Group . | . . . . Highest-Rated Ally . | . . . . Total Orders . | . . . . Ally Attacks . | . . . . Total Damage . | . . . . Kills . | . . . . Allies Corrupted . | . . . . Allies Melted . | . . . . Intel | -11 -10 -10 -9 ------- Run | Yrd Mat Min Mat Active Infowar (turns) 630 | . . . 630 Optics 630 | . . . 630 Robot Analysis Total . | . . . . Derelict Logs Recovered . | . . . . Drone Launches . | . . . . Drone Recoveries . | . . . . Exploration | -11 -10 -10 -9 ------------- Run | Yrd Mat Min Mat Turns Passed 996 | 201 114 11 670 Spaces Moved 515 | 146 89 10 270 Core 23 | 23 . . . Treads 211 | . . . 211 Legs 281 | 123 89 10 59 Wheels . | . . . . Hover . | . . . . Flight . | . . . . Fastest Speed 50 | 50 120 120 105 Average Speed 136 | 108 120 120 158 Slowest Speed 250 | 120 120 120 250 Overloaded Moves . | . . . . Propulsion Burnouts . | . . . . Robots Hopped . | . . . . Potential Cave-ins . | . . . . Cave-ins Triggered . | . . . . Exploration Rate (%) 14 | 6 21 10 21 Regions Visited 3 Branch Regions 1 Pre-discovered Areas . | . . . . Known Exits Taken . | . . . . Unknown Exits Taken 3 | 1 1 1 . Scrap Searched . | . . . . Spaces Dug . | . . . . Terrain Destroyed . | . . . . Melee . | . . . . Projectile . | . . . . AOE . | . . . . Terrain Rammed . | . . . . Walls Destroyed . | . . . . Machines Disabled . | . . . . Actions | -11 -10 -10 -9 --------- Run | Yrd Mat Min Mat Total 665 | 166 96 9 394 Wait 16 | . 7 . 9 Move 512 | 145 88 9 270 Hop . | . . . . Pick Up 20 | 5 1 . 14 Fast Attach 11 | 3 . . 8 Attach 9 | 3 . . 6 Detach 1 | . . . 1 Swap 4 | . . . 4 Drop 8 | . . . 8 Fire 58 | 10 . . 48 Melee 25 | . . . 25 Ram . | . . . . Kick . | . . . . Crush 1 | . . . 1 Escape Stasis . | . . . . Rewire . | . . . . Trap . | . . . . Miscellaneous . | . . . . Route ------- -11/Scrapyard -10/Materials (discovered 2 exits: [*Min x2]) -10/Mines -9/Materials (discovered 2 exits: Min x2) History --------- Turn | Location | Event 2 | -11/Scrapyard | Met Revision 17 162 | -11/Scrapyard | Discovered new exit (range 8) 202 | -11/Scrapyard | Entered Materials 297 | -10/Materials | Discovered new exit (range 12) 297 | -10/Materials | Discovered new exit (range 11) 316 | -10/Materials | Entered Mines 316 | -10/Mines | Discovered new exit (range 9) 317 | -10/Mines | Build established: Mutant 327 | -10/Mines | Entered Materials 327 | -9/Materials | Evolved 2 slots: Propulsion x1, Utility x1 372 | -9/Materials | Central database locked down 547 | -9/Materials | Identified exit to Mines 741 | -9/Materials | Core integrity fell below 50% 770 | -9/Materials | Lost 5 parts (1p2n1u1w) 776 | -9/Materials | Destroyed 8 combat bots 861 | -9/Materials | Core integrity fell below 20% 997 | -9/Materials | Destroyed by S-10 Pest with Light Assault Rifle Last Messages --------------- 00929_ K-01 Serf collects debris. 00942_ Slammed into G-34 Mercenary. 00949_ G-34 Mercenary destroyed. 00952_ K-01 Serf collects debris. 00952_ Acquired 45 matter. 00956_ W-16 Scout destroyed. 00958_ K-01 Serf collects debris. 00967_ R-06 Scavenger collects Ion Engine. 00967_ Acquired 15 matter. 00972_ R-06 Scavenger collects Heat Sink. 00980_ Critical hit (Destroy). 00980_ Lgt. Armor Plating destroyed. 00984_ Lgt. Treads destroyed. 00987_ S-10 Pest destroyed. 00987_ Switching to secondary target: S-10 Pest. 00991_ K-01 Serf collects debris. 00993_ S-10 Pest destroyed. 00993_ Switching to secondary target: S-10 Pest. 00993_ S-10 Pest destroyed. 00994_ K-01 Serf collects debris. Map ----- +----------------------------------------------------+ | ?????????????????????????????????????????????????? | | ?????????????????????????????????????????????????? | | ?????????????????????????????????????????????????? | | ?????????????????????????????????????????????????? | | ?????????????????????????????????????????????????? | | ?????????????????????????????????????????????????? | | ?????????????????????????????????????????????????? | | ?????????????????????????????????????????????????? | | ??????????????????????? ???????????????????????? | | ??????????????????????? ???????????????????????? | | ??????????????????????# ???????????????????????? | | ??????????????????????+ ???????????????????????? | | ??????????????????????# ???????????????????????? | | ??????????????????????# ???????????????????????? | | ??????????????????????#u ???????????????????????? | | ??????????????????????# s ???????????????????????? | | ??????????????????????# #??????????????????????? | | ??????????????????????# #??????????????????????? | | ??????????????????????+ #??????????????????????? | | ??????????????????????# #??????????????????????? | | ??????????????????????# +??????????????????????? | | ??????????????????????# #??????????????????????? | | ??????????????????????# s #??????????????????????? | | ??????????????????????#ks=#??????????????????????? | | ???????????????????????%[%#??????????????????????? | | ????????????????????????#@#??????????????>???????? | | ????????????????????????#=#??????????????????????? | | ????????????????????????#%#??????????????????????? | | ????????????????????????#=#??????????????????????? | | ????????????????????????# #??????????????????????? | | ?????????????# #####+#### ### #####??????????????? | | ????? %* ! kr ^ ??????? | | ?????????????# #####+## ###########??????????????? | | ?????????????# # # # [!#????????????????? | | ?????????????+ # + + [ #????????????????? | | ?????????????# # #=# #????????????????? | | ?????????????# # #[# "T" #????????????????? | | ?????????????# # "T" +*#? ?? = #????????????????? | | ?????????????# # """ #%#?##???##????????????????? | | ?????????????# ########=#????????????????????????? | | ?????????????# ^^ *%#????????????????????????? | | ?????????????# ^ !=#????????????????????????? | | ?????????????#!!! #????????????????????????? | | ?????????????#!!! ###??????????????????????? | | ?????????????#!!! "T" #??????????????????????? | | ?????????????# #??????????????????????? | | ?????????????# ! #??????????????????????? | | ?????????????# ==%### #??????????????????????? | | ?????????????# [ %#?# #??????????????????????? | | ?????????????# ##+#####+####?????????????????????? | +----------------------------------------------------+ Best States ------------- Heat Dissipation 28 Energy Generation 12 Energy Capacity 265 Matter Stores 348 Matter Capacity 350 Sight Range 18 Terrain Scan Density 10 Armor Coverage 150 Evasion (%) 55 Recoil Reduction 3 Item Schematics ----------------- None Robot Schematics ------------------ None Fabricated ------------ Nothing Repaired ---------- Nothing Studied --------- Aluminum Leg | -9/Materials | Hacked Alien Tech Used ----------------- None Achievements -------------- None Challenges ------------ None Game ------ Seed TransportDisposableMask Manual? 0 Play Time 00:13:12 Cumulative 2.7 hours Start 2026.02.11 @ 21:33:09 End 2026.02.12 @ 16:14:00 Sessions 3 Manual Loads 0 Difficulty Rogue Special Mode None Game No. 3 Rogue 3 Adventurer 0 Explorer 0 Win Type - Total 0 Types 0/0/0/0/0/0/0/0/0/0 Lore% 1 Gallery% 7 Achievement% 7 Wizard Run 0 Options --------- Layout 1 ASCII 0 Keyboard 0 Movement Arrows Keybinds 0 Fullscreen 1 Font 24/Smallcaps Map View 50x35 Zoom Use 0% Tactical HUD 1 Map Filters NONE Filters NONE Steam 1 RUN: a66bef7f-e684-467b-af91-f7d44c6aa9f3